Cogmind - Beta 12 @@@ ROGUE MODE // 2023.11.27 @ 20:44:30 Player: Tzetze Result: Destroyed by G-47 Trooper with Particle Gun Performance ------------- Evolutions (0) 0 Regions Visited (2) 400 Robots Destroyed (17) 85 Value Destroyed (517) 517 Prototype IDs (0) 0 Alien Tech Used (0) 0 Bonus (0) 0 TOTAL SCORE: 1002 Bonus ------- None Cogmind --------- Core Integrity 0/250 Matter 400/400 Energy 79/100 System Corruption 2% Temperature Cool (9) Movement Rolling (90) Location -10/Mines Parts ------- > --- POWER (1) -------- (None) > --- PROPULSION (2) --- Wheel Compact Wheel > --- UTILITY (2) ------ Medium Storage Unit Medium Matter Pod > --- WEAPON (2) ------- (None) > --- INVENTORY (10) --- Light Angular Momentum Engine Light Treads Light Treads Aluminum Leg Wheel Cooling System Shock Trap Shock Trap Peak State ------------ > --- POWER ------------ Light Ion Engine > --- PROPULSION ------- Improved Aluminum Leg Improved Aluminum Leg > --- UTILITY ---------- Cooling System Small Storage Unit > --- WEAPON ----------- EM Pulse Gun Light Assault Rifle > --- INVENTORY -------- Light Ion Engine Light Treads Light Treads Wheel Compact Wheel Cooling System Assault Rifle [Rating: 10] Favorites ----------- Power Light Ion Engine Engine Light Ion Engine Propulsion Improved Aluminum Leg Leg Improved Aluminum Leg Wheel Wheel Utility Small Storage Unit Device Cooling System Storage Small Storage Unit Weapon EM Pulse Gun Energy Gun EM Pulse Gun Ballistic Gun Assault Rifle Special Weapon Mining Laser Build | -11 -10 -10 ------- Run | Jun Mat Min Slots Evolved . | . . . Power . | . . . Propulsion . | . . . Utility . | . . . Weapon . | . . . Parts Attached 21 | 6 12 3 Power 2 | 1 1 . Engine 2 | 1 1 . Core . | . . . Reactor . | . . . Propulsion 7 | 2 3 2 Treads . | . . . Leg 3 | . 3 . Wheel 4 | 2 . 2 Hover . | . . . Flight . | . . . Utility 5 | 1 4 . Device 1 | . 1 . Storage 4 | 1 3 . Processor . | . . . Hackware . | . . . Protection . | . . . Artifact . | . . . Weapon 7 | 2 4 1 Energy Gun 1 | 1 . . Energy Cannon . | . . . Ballistic Gun 5 | 1 4 . Ballistic Cannon . | . . . Launcher . | . . . Special Weapon 1 | . . 1 Impact Weapon . | . . . Slashing Weapon . | . . . Piercing Weapon . | . . . Special Melee Weapon . | . . . Unidentified Prototypes . | . . . Parts Lost 7 | . 2 5 Power 2 | . 1 1 Propulsion 2 | . 1 1 Utility . | . . . Weapon 3 | . . 3 Highest Loss Streak 3 | . 2 3 To Critical Strikes . | . . . Average Slot Usage (%) 91 | . 97 69 Engine 11 | . 13 4 Leg 22 | . 25 9 Wheel 4 | . 1 16 Device 4 | . 5 . Storage 22 | . 21 28 Energy Gun 10 | . 13 . Ballistic Gun 13 | . 14 9 Naked Turns . | . . . Heaviest Build 29 | 11 29 18 Greatest Support 26 | 26 26 26 Greatest Overweight (x) 4 | . 4 1 Average Overweight (x) . | . . . Largest Inventory Capacity 15 | 8 15 10 Average Capacity 8 | 6 8 10 Most Carried 8 | 4 8 7 Average Carried 6 | 2 7 5 Final Capacity 10 | 8 10 10 Final Carried 8 | 4 5 8 Class Distribution -------------------- 100% | Mutant Dominant Class ---------------- Mutant | -10/Materials Mutant | -10/Mines Resources | -11 -10 -10 ----------- Run | Jun Mat Min Matter Collected 671 | 175 418 78 Remotely . | . . . Salvage Created 646 | . 458 188 Parts 34 | . 25 9 Haulers Intercepted . | . . . Recyclers Shooed 1 | . 1 . Parts Field Recycled . | . . . Retrieved Matter . | . . . Parts Self-Destructed . | . . . Prevented . | . . . Kills | -11 -10 -10 ------- Run | Jun Mat Min Combat Hostiles Destroyed 14 | . 10 4 Melee 1 | . . 1 Guns 12 | . 9 3 AOE 1 | . 1 . Classes Destroyed 4 | . 4 . Builder 1 | . 1 . Watcher 2 | . 2 . Swarmer 2 | . 2 . Grunt 12 | . 8 4 Best Kill Streak 3 | . 3 3 Combat Bots Only 3 | . 2 3 Max Kills in Single Turn 1 | . 1 1 Gunslinging . | . . . Exploded 1 | . 1 . Melee 1 | . . 1 Uniques/NPCs Destroyed . | . . . Combat | -11 -10 -10 -------- Run | Jun Mat Min Damage Taken 916 | . 386 530 Core 256 | . 115 141 Absorbed by Shields . | . . . Core Remaining (%) 100 | 100 . . Volleys Fired 78 | . 46 32 Largest 2 | . 2 2 Hottest 100 | . 60 100 Shots Fired 137 | . 94 43 Gun 136 | . 94 42 Cannon . | . . . Launcher . | . . . Special 1 | . . 1 Kinetic 89 | . 47 42 Thermal 1 | . . 1 Explosive . | . . . Electromagnetic 47 | . 47 . Robot Hit Streak 13 | . 7 13 Robot Miss Streak 7 | . 7 1 Penetration Max . | . . . Secondary Targets 1 | . . 1 Max Gunslinging Chain 1 | . . 1 Shots Hit Robots 78 | . 45 33 Core Hits 41 | . 27 14 Critical Kills . | . . . Critical Parts Destroyed . | . . . Critical Strikes . | . . . Melee Attacks . | . . . Impact . | . . . Slashing . | . . . Piercing . | . . . Sneak Attacks . | . . . Combat Hostiles . | . . . Follow-up Attacks . | . . . Damage Inflicted 1020 | . 709 311 Guns 899 | . 598 301 Cannons . | . . . Explosions 111 | . 111 . Melee . | . . . Ramming 10 | . . 10 Kinetic 580 | . 279 301 Thermal 111 | . 111 . Explosive . | . . . Electromagnetic 319 | . 319 . Impact . | . . . Slashing . | . . . Piercing . | . . . Highest Corruption 2 | . 2 2 Average Corruption 2 | . 2 2 Corruption Purged . | . . . Corruption Blocked . | . . . Effects 17 | . 16 1 Message Errors 4 | . 4 . Matter Fused 6 | . 6 . Heat Flow Errors 1 | . 1 . Parts Rejected 1 | . 1 . Data Loss (minor) 1 | . 1 . Data Loss (major) 1 | . 1 . Misfires 2 | . 2 . Alerts 1 | . . 1 Overload Shots . | . . . Overflow Damage . | . . . Projectiles . | . . . Explosions . | . . . Melee . | . . . Knockbacks . | . . . Impact . | . . . Kinetic . | . . . Secondary . | . . . Self-Inflicted Damage 4 | . . 4 Shots . | . . . Rammed 5 | . . 5 Targets Rammed 5 | . . 5 Kicked . | . . . Crushed . | . . . Highest Temperature 241 | . 241 27 Average Temperature 22 | . 34 10 Received Heat Transfer 534 | . 213 321 Siege Activations . | . . . Robots Corrupted . | . . . Combat Hostiles . | . . . Parts Fried 2 | . 2 . Impact Corruptions . | . . . Robots Melted . | . . . Combat Hostiles . | . . . Parts Melted . | . . . Heat Transferred 50 | . 50 . Parts Sabotaged . | . . . Parts Stolen . | . . . Parts Stripped . | . . . Power Chain Reactions 1 | . 1 . Missiles Intercepted . | . . . Alert | -11 -10 -10 ------- Run | Jun Mat Min Peak Influence 190 | . 190 77 Initial 12 | . . 12 Average 71 | . 81 55 Maximum Alert Level . | . . . Low Security (%) 100 | 100 100 100 Level 1 . | . . . Level 2 . | . . . Level 3 . | . . . Level 4 . | . . . Level 5 . | . . . High Security . | . . . Max Security . | . . . Squads Dispatched 3 | . 2 1 Investigation . | . . . Extermination . | . . . Reinforcement 2 | . 2 . Assault 1 | . . 1 Garrison . | . . . Intercept . | . . . Searches Triggered . | . . . Construction Impeded . | . . . Haulers Reinforced . | . . . Active Scanning Responses . | . . . Cargo Convoy Interrupts . | . . . Stealth | -11 -10 -10 --------- Run | Jun Mat Min Distress Signals 1 | . 1 . Communications Jammed . | . . . Distress Signals . | . . . Times Spotted 25 | . 18 7 Peak Tracking Total 5 | . 5 3 Tactical Retreats 2 | . 2 . Traps | -11 -10 -10 ------- Run | Jun Mat Min Traps Triggered 1 | . 1 . Indirectly . | . . . Trap Hack Attempts . | . . . Triggered . | . . . Disarmed . | . . . Reprogrammed . | . . . Reused . | . . . Traps Extracted . | . . . Installed 1 | . . 1 Triggered . | . . . Most Traps Carried 2 | . . 2 Machines | -11 -10 -10 ---------- Run | Jun Mat Min Machines Disabled . | . . . Max in Single Turn . | . . . Machines Repaired . | . . . Machines Sabotaged . | . . . Overloaded Fab Kills . | . . . Hacking | -11 -10 -10 --------- Run | Jun Mat Min Machines Accessed 3 | . 3 . Terminals 3 | . 3 . Fabricators . | . . . Repair Stations . | . . . Recycling Units . | . . . Scanalyzers . | . . . Garrison Access . | . . . Total Hacks 6 | . 6 . Successful 5 | . 5 . Failed 1 | . 1 . Catastrophic . | . . . Database Lockouts . | . . . Manual . | . . . Terminals 6 | . 6 . Fabricators . | . . . Repair Stations . | . . . Recycling Units . | . . . Scanalyzers . | . . . Garrison Access . | . . . Terminal Hacks 5 | . 5 . Branch Access Points 1 | . 1 . Emergency Access Points 1 | . 1 . Maintenance Status 1 | . 1 . Investigation Status 1 | . 1 . Zone Layout 1 | . 1 . Fabricator Hacks . | . . . Repair Station Hacks . | . . . Recycling Unit Hacks . | . . . Scanalyzer . | . . . Garrison Access Hacks . | . . . Unauthorized Hacks . | . . . Terminals . | . . . Fabricators . | . . . Repair Stations . | . . . Recycling Units . | . . . Scanalyzers . | . . . Garrison Access . | . . . Data Cores Recovered . | . . . Used . | . . . Hacking Detections . | . . . Full Trace Events . | . . . Feedback Events . | . . . Feedback Blocked . | . . . Robot Schematics Acquired . | . . . Robots Built . | . . . Authchips . | . . . Time . | . . . Total Robot Build Rating . | . . . Part Schematics Acquired . | . . . Parts Built . | . . . Authchips . | . . . Time . | . . . Total Part Build Rating . | . . . Parts Repaired . | . . . Time . | . . . Parts Recycled . | . . . Recycled Matter . | . . . Retrieved Matter . | . . . Retrieved Components . | . . . Parts Scanalyzed . | . . . Part Schematics Acquired . | . . . Parts Damaged . | . . . Bothacking | -11 -10 -10 ------------ Run | Jun Mat Min Used RIF Installer . | . . . Robots Hacked . | . . . Non-combat . | . . . Combat . | . . . Robot Hacks Applied . | . . . Relay Couplers Released . | . . . Fabnet Peak Effective % . | . . . Robots Rewired . | . . . Allies Hacked . | . . . Hacks Repelled . | . . . Allies | -11 -10 -10 -------- Run | Jun Mat Min Total Allies 1 | . . 1 Largest Group 1 | . . 1 Highest-Rated Group 31 | . . 31 Highest-Rated Ally 31 | . . 31 Total Orders . | . . . Ally Attacks 5 | . . 5 Total Damage 85 | . . 85 Kills 1 | . . 1 Allies Corrupted . | . . . Allies Melted . | . . . Intel | -11 -10 -10 ------- Run | Jun Mat Min Robot Analysis Total . | . . . Derelict Logs Recovered 1 | . . 1 Drone Launches . | . . . Drone Recoveries . | . . . Exploration | -11 -10 -10 ------------- Run | Jun Mat Min Turns Passed 1151 | 58 852 241 Spaces Moved 782 | 49 572 161 Core 4 | 3 1 . Treads . | . . . Legs 564 | . 535 29 Wheels 214 | 46 36 132 Hover . | . . . Flight . | . . . Fastest Speed 50 | 50 90 90 Average Speed 113 | 87 121 95 Slowest Speed 250 | 90 250 190 Overloaded Moves . | . . . Propulsion Burnouts . | . . . Robots Hopped . | . . . Cave-ins Triggered . | . . . Exploration Rate (%) 42 | 4 81 41 Regions Visited 2 Branch Regions 1 Pre-discovered Areas 1 | . . 1 Known Exits Taken 1 | . 1 . Unknown Exits Taken 1 | 1 . . Scrap Searched . | . . . Spaces Dug . | . . . Terrain Destroyed 6 | . 5 1 Melee . | . . . Projectile 1 | . . 1 AOE 5 | . 5 . Terrain Rammed . | . . . Walls Destroyed . | . . . Machines Disabled . | . . . Actions | -11 -10 -10 --------- Run | Jun Mat Min Total 919 | 64 645 210 Wait . | . . . Move 780 | 48 571 161 Hop . | . . . Pick Up 25 | 10 9 6 Fast Attach . | . . . Attach 16 | 6 7 3 Detach 4 | . 3 1 Swap 5 | . 5 . Drop 5 | . 4 1 Fire 78 | . 46 32 Melee . | . . . Ram 5 | . . 5 Kick . | . . . Crush . | . . . Escape Stasis . | . . . Rewire . | . . . Trap 1 | . . 1 Miscellaneous . | . . . Route ------- -11/Junkyard -10/Materials (discovered 3 exits: [*Mat x2] / *Min) -10/Mines History --------- Turn | Location | Event 18 | -11/Junkyard | Discovered new exit (range 15) 59 | -11/Junkyard | Entered Materials 80 | -10/Materials | Identified exit to Mines 229 | -10/Materials | Discovered new exit (range 13) 300 | -10/Materials | Build established: Mutant 434 | -10/Materials | Discovered new exit (range 16) 911 | -10/Materials | Entered Mines 950 | -10/Mines | Core integrity fell below 50% 1004 | -10/Mines | Core integrity fell below 20% 1013 | -10/Mines | Lost 3 parts (1p1n1w) 1033 | -10/Mines | Learned location of Storage (-7) 1044 | -10/Mines | Found a hidden stash of uninstalled traps 1076 | -10/Mines | Met a Derelict testing a Signal Generator 1152 | -10/Mines | Destroyed by G-47 Trooper with Particle Gun Last Messages --------------- System corrupted: IFF burst signal emitted. U-05 Engineer lays Concrete. A derelict emerges from the shadows: "Quiet! I'm testing a new device we can use to divert those annoying Unaware when we need to." ALERT: Intercepting significant anomalous signal. Dispatching assault force. O7-WJZ(g): "Okay, I guess that means it works. Now let's get out of here!" Move into an ally to swap places with them. ALERT: Intercepting significant anomalous signal. Redirecting assault force. ALERT: Intercepting significant anomalous signal. Redirecting assault force. T-07 Excavator destroyed. Acquired Mining Laser. O7-WJZ(g) destroyed. Acquired 10 matter. M-13 Machinist repairs G-47 Trooper. Acquired Wheel. Mining Laser destroyed. Acquired Lgt. Angular Momentum Engine. Map ----- +----------------------------------------------------+ | ?????????????????????????????????????????? | | ?????????????????????????????????????????? | | ?????????????????????????????????????????? | | ?????????????????????????????????????????? | | ?????????????????????????????????????????? | | ?????????????????????????????????????????? | | ?????????????????????????#???????????????? | | ???????????????????????## ???????????????? | | ??????????????????????# "?????????????? | | ?????????????????????? "?????????????? | | ?????????????????????? ??????????????? | | ####?????????????????? ??????????????? | | #??????????????????# ??????????????? | | #??????????????????# ??????????????? | | # #?????????????????## ???????????????? | | # #??????????? ?????? ???????????????? | | # ####??????? ????? ???????????????? | | # # ##???? ?????# #???????????????? | | # #### #????# #???????????????? | | % #??????# #???????????????? | | % #???????# #?###???????????? | | #???????# ## ##??????????? | | ## #??????# #??????????? | | % ##???# ###???# #??????????? | | = ##????# % #### ##??????????? | | #????# = @####???????????? | | #?????????# [%! ggm#??????????????? | | # ##?????????####= #;g!#??????????????? | | ### #?????????????# ##=!#??????????????? | | ??# #?????????????# ## #??????????????? | | ??# #?????????????# ## ######?????????? | | ??# #?????????????# ## #?????????? | | ??# #???###???????# ## #?????????? | | ??# ##### ###?????# ####### #?????????? | | ??# ##???## #####?# #?????????? | | ??# #### ##??# #?# ####??????? | | ??# #??# & #### #?# #??????? | | ??# ??## & ## ## ###### #??????? | | ?? ???## ^ ### ##??# #??????? | | ? # ????## ### #??# ##?????? | | # ? ?????## ### #??# ##????? | | # ? ?????## ##?# &#??# #????? | | # ?##??????# ##??# ##?# #????? | | # ?????????# #???## ##?# ##????? | | # #?????????# #????####?# ###?????? | | ??????????## ##?????????# ##???????? | | # ??????????? ??????????####?????????? | | # ??????????# ???????????????????????? | | # ???????????# ##??????????????????????? | | ????????????? ##????????????????????????? | +----------------------------------------------------+ Best States ------------- Heat Dissipation 47 Energy Generation 10 Energy Capacity 125 Matter Stores 400 Matter Capacity 400 Sight Range 16 Terrain Scan Density 10 Evasion (%) 55 Item Schematics ----------------- None Robot Schematics ------------------ None Fabricated ------------ Nothing Alien Tech Used ----------------- None Achievements -------------- Fist Fight Challenges ------------ None Game ------ Seed AssaultDecoyImmobilizer Manual? 0 Play Time 00:16:46 Cumulative 2.6 hours Start 2023.11.27 @ 20:28:34 End 2023.11.27 @ 20:44:30 Sessions 1 Manual Loads 0 Difficulty Rogue Special Mode None Game No. 3 Rogue 2 Adventurer 1 Explorer 0 Win Type - Total 0 Types 0/0/0/0/0/0/0/0/0 Lore% 1 Gallery% 5 Achievement% 8 Wizard Run 0 Options --------- ASCII 0 Keyboard 0 Movement Mouse Keybinds 0 Fullscreen 1 Font 18/SmallcapsGlow Map View 76x50 Tactical HUD 0 Map Filters NONE Filters NONE Steam 1 RUN: bf65da14-d248-437b-90b9-f8ac3b320e7b